[Event "Early-Titled-Tuesday-Blitz-February-06-2024"]
[Site "Chess.com"]
[Date "2024.02.06"]
[Round "3"]
[White "Korchmar_Vasiliy"]
[Black "DevikBronstein"]
[Result "1-0"]
[WhiteElo "2717"]
[BlackElo "2901"]
[TimeControl "180+1"]
[EndTime "8:28:43 PST"]
[Termination "Korchmar_Vasiliy won by resignation"]

1. e4 {[%clk 0:03:00.9]} 1... c5 {[%clk 0:02:59.9]} 2. d4 {[%clk 0:03:00.6]}
2... cxd4 {[%clk 0:02:59.6]} 3. Qxd4 {[%clk 0:03:01.5]} 3... Nc6 {[%clk
0:02:59.3]} 4. Qd3 {[%clk 0:03:02]} 4... Nf6 {[%clk 0:02:58.3]} 5. Nc3 {[%clk
0:03:02.6]} 5... a6 {[%clk 0:02:49.2]} 6. Nf3 {[%clk 0:02:58.1]} 6... d6 {[%clk
0:02:41.8]} 7. Be2 {[%clk 0:02:57.5]} 7... e6 {[%clk 0:02:39.8]} 8. Bf4 {[%clk
0:02:56.2]} 8... e5 {[%clk 0:02:26.3]} 9. Bg5 {[%clk 0:02:55.4]} 9... Be7 {[%clk
0:02:11.8]} 10. O-O-O {[%clk 0:02:55.4]} 10... Be6 {[%clk 0:01:06]} 11. Bxf6
{[%clk 0:02:54.8]} 11... gxf6 {[%clk 0:01:06]} 12. Nd5 {[%clk 0:02:51.5]} 12...
Qa5 {[%clk 0:01:00.9]} 13. a3 {[%clk 0:02:49.2]} 13... Bxd5 {[%clk 0:00:58.9]}
14. exd5 {[%clk 0:02:50.1]} 14... Nb8 {[%clk 0:00:56.1]} 15. Nh4 {[%clk
0:02:49.7]} 15... Nd7 {[%clk 0:00:53.6]} 16. Nf5 {[%clk 0:02:50]} 16... Bf8
{[%clk 0:00:53.9]} 17. Kb1 {[%clk 0:02:43.9]} 17... Rg8 {[%clk 0:00:52.5]} 18.
Qh3 {[%clk 0:02:41.6]} 18... h6 {[%clk 0:00:48.4]} 19. Bg4 {[%clk 0:02:40.5]}
19... Nc5 {[%clk 0:00:44.5]} 20. Rhe1 {[%clk 0:02:11.2]} 20... Qb6 {[%clk
0:00:36.1]} 21. Re3 {[%clk 0:02:04.3]} 21... a5 {[%clk 0:00:36.2]} 22. Qh4
{[%clk 0:01:58.2]} 22... Rg5 {[%clk 0:00:35]} 23. f4 {[%clk 0:01:50.7]} 23...
Rg6 {[%clk 0:00:24.7]} 24. fxe5 {[%clk 0:01:45.1]} 24... fxe5 {[%clk 0:00:25.6]}
25. Rde1 {[%clk 0:01:36.6]} 25... Na4 {[%clk 0:00:16.2]} 26. Rb3 {[%clk
0:01:35.5]} 26... Qc7 {[%clk 0:00:15.9]} 27. Bh5 {[%clk 0:01:32.7]} 27... Nc5
{[%clk 0:00:16.2]} 28. Rc3 {[%clk 0:00:57.5]} 28... Rg5 {[%clk 0:00:15.8]} 29.
g4 {[%clk 0:00:58.1]} 29... b5 {[%clk 0:00:15.5]} 30. Qf2 {[%clk 0:00:35.8]}
30... b4 {[%clk 0:00:15.4]} 31. Rxc5 {[%clk 0:00:36.3]} 31... Qxc5 {[%clk
0:00:14.7]} 32. Nxd6+ {[%clk 0:00:35.4]} 32... Bxd6 {[%clk 0:00:14.1]} 33. Qxf7+
{[%clk 0:00:35.6]} 33... Kd8 {[%clk 0:00:14.7]} 34. Qe8+ {[%clk 0:00:36.1]}
34... Kc7 {[%clk 0:00:14.9]} 35. Qxa8 {[%clk 0:00:37]} 35... bxa3 {[%clk
0:00:14.7]} 36. Rf1 {[%clk 0:00:19.1]} 36... Rg7 {[%clk 0:00:14.9]} 37. Rf3
{[%clk 0:00:12.8]} 37... Qg1+ {[%clk 0:00:07.1]} 38. Ka2 {[%clk 0:00:12.5]}
38... Qb6 {[%clk 0:00:06.9]} 39. Rc3+ {[%clk 0:00:12.1]} 39... Bc5 {[%clk
0:00:07.5]} 40. bxa3 {[%clk 0:00:07.9]} 40... Kd7 {[%clk 0:00:06.5]} 41. Qe8+
{[%clk 0:00:06.3]} 41... Kc7 {[%clk 0:00:06.1]} 42. Qxe5+ {[%clk 0:00:06.6]}
42... Kc8 {[%clk 0:00:04.5]} 43. Qxg7 {[%clk 0:00:07]} 43... Kd8 {[%clk
0:00:02.9]} 44. Qg8+ {[%clk 0:00:06.9]} 44... Kd7 {[%clk 0:00:03]} 45. Qe6+
{[%clk 0:00:07.2]} 45... Qxe6 {[%clk 0:00:02.8]} 46. dxe6+ {[%clk 0:00:08.1]}
46... Kd6 {[%clk 0:00:03.7]} 47. Rxc5 {[%clk 0:00:08.3]} 47... Kxc5 {[%clk
0:00:04]} 48. e7 {[%clk 0:00:08.7]} 48... Kd4 {[%clk 0:00:04.9]} 49. e8=Q {[%clk
0:00:09.3]} 1-0

[Event "Early-Titled-Tuesday-Blitz-February-06-2024"]
[Site "Chess.com"]
[Date "2024.02.06"]
[Round "3"]
[White "Jospem"]
[Black "DarkAlekhine"]
[Result "1-0"]
[WhiteElo "3060"]
[BlackElo "2752"]
[TimeControl "180+1"]
[EndTime "8:28:45 PST"]
[Termination "Jospem won on time"]

1. e4 {[%clk 0:03:00.9]} 1... c5 {[%clk 0:03:00.2]} 2. Nf3 {[%clk 0:03:00.9]}
2... d6 {[%clk 0:03:00.6]} 3. c3 {[%clk 0:03:01.3]} 3... Nf6 {[%clk 0:03:00.8]}
4. h3 {[%clk 0:03:02]} 4... g6 {[%clk 0:03:00.6]} 5. Bd3 {[%clk 0:03:02.6]} 5...
Bg7 {[%clk 0:03:01]} 6. Bc2 {[%clk 0:03:03.4]} 6... Nc6 {[%clk 0:03:01.4]} 7.
O-O {[%clk 0:03:03.9]} 7... e5 {[%clk 0:03:02]} 8. d3 {[%clk 0:03:04.3]} 8...
O-O {[%clk 0:03:00.8]} 9. Bg5 {[%clk 0:03:04.6]} 9... h6 {[%clk 0:03:00.2]} 10.
Bxf6 {[%clk 0:03:05.2]} 10... Bxf6 {[%clk 0:03:01.1]} 11. Bb3 {[%clk 0:03:05.9]}
11... Bg7 {[%clk 0:02:57.5]} 12. a3 {[%clk 0:03:06.1]} 12... Kh7 {[%clk
0:02:55.3]} 13. Ba2 {[%clk 0:03:06.1]} 13... b5 {[%clk 0:02:54.5]} 14. Nbd2
{[%clk 0:03:05.2]} 14... Rb8 {[%clk 0:02:54.2]} 15. b4 {[%clk 0:03:01]} 15... f5
{[%clk 0:02:46.4]} 16. Rb1 {[%clk 0:02:59.6]} 16... a6 {[%clk 0:02:46.3]} 17.
Re1 {[%clk 0:02:58.3]} 17... Qc7 {[%clk 0:02:34.9]} 18. Rc1 {[%clk 0:02:41.8]}
18... a5 {[%clk 0:02:31.7]} 19. Qb3 {[%clk 0:02:25.3]} 19... Qa7 {[%clk
0:01:53.4]} 20. Qb2 {[%clk 0:02:17.8]} 20... axb4 {[%clk 0:01:00.6]} 21. axb4
{[%clk 0:01:58.8]} 21... Bd7 {[%clk 0:01:00.7]} 22. Ra1 {[%clk 0:01:48.7]} 22...
Qc7 {[%clk 0:01:00]} 23. Bd5 {[%clk 0:01:47.8]} 23... Ne7 {[%clk 0:00:59.4]} 24.
Bb3 {[%clk 0:01:48.1]} 24... fxe4 {[%clk 0:00:56.5]} 25. dxe4 {[%clk 0:01:45.8]}
25... c4 {[%clk 0:00:56.5]} 26. Bc2 {[%clk 0:01:46.5]} 26... Ra8 {[%clk
0:00:55.1]} 27. Rxa8 {[%clk 0:01:44.8]} 27... Rxa8 {[%clk 0:00:56]} 28. Nf1
{[%clk 0:01:45.1]} 28... Qa7 {[%clk 0:00:54.7]} 29. Rd1 {[%clk 0:01:45.5]} 29...
Nc8 {[%clk 0:00:49.2]} 30. Bb1 {[%clk 0:01:44.9]} 30... Qa1 {[%clk 0:00:45.6]}
31. Qd2 {[%clk 0:01:43.5]} 31... Be6 {[%clk 0:00:39.5]} 32. Ne3 {[%clk
0:01:40.9]} 32... Ra3 {[%clk 0:00:38.8]} 33. Nc2 {[%clk 0:01:37.7]} 33... Qxc3
{[%clk 0:00:37]} 34. Nxa3 {[%clk 0:01:38]} 34... Qxa3 {[%clk 0:00:37.5]} 35. Bc2
{[%clk 0:01:31.5]} 35... Bf8 {[%clk 0:00:34.7]} 36. Nh2 {[%clk 0:01:13.7]} 36...
Na7 {[%clk 0:00:31.5]} 37. Ng4 {[%clk 0:01:08.6]} 37... Nc6 {[%clk 0:00:27.9]}
38. Nf6+ {[%clk 0:01:09.1]} 38... Kh8 {[%clk 0:00:27.8]} 39. Nd5 {[%clk
0:00:54.7]} 39... Nd4 {[%clk 0:00:25.2]} 40. Bb1 {[%clk 0:00:42.1]} 40... Qb3
{[%clk 0:00:22.8]} 41. Re1 {[%clk 0:00:26.2]} 41... Kg7 {[%clk 0:00:15.2]} 42.
Kh2 {[%clk 0:00:23.2]} 42... Qa3 {[%clk 0:00:11.8]} 43. f4 {[%clk 0:00:23.4]}
43... Bxd5 {[%clk 0:00:09.3]} 44. exd5 {[%clk 0:00:21.4]} 44... Qa7 {[%clk
0:00:03.8]} 45. Qe3 {[%clk 0:00:19.2]} 45... Qc7 {[%clk 0:00:03.4]} 46. Qg3
{[%clk 0:00:17.6]} 46... Qf7 {[%clk 0:00:02.8]} 47. fxe5 {[%clk 0:00:15.3]}
47... dxe5 {[%clk 0:00:03.3]} 48. Qxe5+ {[%clk 0:00:15.8]} 48... Qf6 {[%clk
0:00:03.7]} 49. Qxf6+ {[%clk 0:00:11.6]} 49... Kxf6 {[%clk 0:00:04.1]} 50. Rf1+
{[%clk 0:00:12.5]} 50... Ke7 {[%clk 0:00:04.5]} 51. d6+ {[%clk 0:00:12.2]} 51...
Kxd6 {[%clk 0:00:03.9]} 52. Rxf8 {[%clk 0:00:12.4]} 52... c3 {[%clk 0:00:04.3]}
53. Bxg6 {[%clk 0:00:12]} 1-0

[Event "Early-Titled-Tuesday-Blitz-February-06-2024"]
[Site "Chess.com"]
[Date "2024.02.06"]
[Round "3"]
[White "IriBu"]
[Black "Asteroxylon"]
[Result "1/2-1/2"]
[WhiteElo "2554"]
[BlackElo "2362"]
[TimeControl "180+1"]
[EndTime "8:28:46 PST"]
[Termination "Game drawn by agreement"]

1. e4 {[%clk 0:03:00.9]} 1... e6 {[%clk 0:02:59.6]} 2. d3 {[%clk 0:02:58.7]}
2... d5 {[%clk 0:02:59.4]} 3. Nd2 {[%clk 0:02:59]} 3... Nf6 {[%clk 0:02:59.1]}
4. g3 {[%clk 0:02:59]} 4... Be7 {[%clk 0:02:58.8]} 5. Bg2 {[%clk 0:02:59.3]}
5... O-O {[%clk 0:02:59.4]} 6. e5 {[%clk 0:02:56.4]} 6... Nfd7 {[%clk
0:02:58.5]} 7. f4 {[%clk 0:02:56.8]} 7... c5 {[%clk 0:02:43.6]} 8. Ngf3 {[%clk
0:02:56.4]} 8... Nc6 {[%clk 0:02:44.2]} 9. O-O {[%clk 0:02:54.4]} 9... b6 {[%clk
0:02:35.6]} 10. c4 {[%clk 0:02:52.7]} 10... Nb4 {[%clk 0:02:23.5]} 11. Nb1
{[%clk 0:02:39.4]} 11... Bb7 {[%clk 0:02:18.2]} 12. a3 {[%clk 0:02:23.9]} 12...
Na6 {[%clk 0:02:18.1]} 13. Nc3 {[%clk 0:02:20.6]} 13... Nc7 {[%clk 0:02:17.9]}
14. h4 {[%clk 0:02:12.9]} 14... a6 {[%clk 0:02:15]} 15. Ng5 {[%clk 0:02:07.5]}
15... h6 {[%clk 0:02:10.7]} 16. Nh3 {[%clk 0:01:58]} 16... Ra7 {[%clk
0:01:56.6]} 17. Qh5 {[%clk 0:01:52.2]} 17... Qe8 {[%clk 0:01:51.5]} 18. cxd5
{[%clk 0:01:43.3]} 18... Nxd5 {[%clk 0:01:31.4]} 19. Nxd5 {[%clk 0:01:38.3]}
19... Bxd5 {[%clk 0:01:31.3]} 20. Bxd5 {[%clk 0:01:36.5]} 20... exd5 {[%clk
0:01:32.2]} 21. f5 {[%clk 0:01:26.6]} 21... Nxe5 {[%clk 0:01:25.4]} 22. f6
{[%clk 0:01:26.7]} 22... Bxf6 {[%clk 0:01:20.5]} 23. Rxf6 {[%clk 0:01:23.7]}
23... gxf6 {[%clk 0:01:20.1]} 24. Bxh6 {[%clk 0:01:18.6]} 24... Ng6 {[%clk
0:01:10.9]} 25. Rf1 {[%clk 0:01:05.7]} 25... Re7 {[%clk 0:01:03.4]} 26. Bxf8
{[%clk 0:01:02.5]} 26... Qxf8 {[%clk 0:00:57.7]} 27. Qxd5 {[%clk 0:00:55.5]}
27... Re5 {[%clk 0:00:50.4]} 28. Qf3 {[%clk 0:00:53.7]} 28... Qd6 {[%clk
0:00:38.4]} 29. Qxf6 {[%clk 0:00:50.6]} 29... Qd4+ {[%clk 0:00:27.9]} 30. Qf2
{[%clk 0:00:41.2]} 30... Re2 {[%clk 0:00:26.1]} 31. Qxd4 {[%clk 0:00:38.6]}
31... cxd4 {[%clk 0:00:27]} 32. Rf2 {[%clk 0:00:39.1]} 32... Re1+ {[%clk
0:00:25.5]} 33. Rf1 {[%clk 0:00:28.4]} 33... Re2 {[%clk 0:00:25.7]} 34. b4
{[%clk 0:00:25.8]} 34... Ne5 {[%clk 0:00:25.1]} 35. Nf2 {[%clk 0:00:15.9]} 35...
Re3 {[%clk 0:00:19.9]} 36. Rd1 {[%clk 0:00:14.5]} 36... Rxg3+ {[%clk 0:00:18.9]}
37. Kf1 {[%clk 0:00:14.9]} 37... Nf3 {[%clk 0:00:17.3]} 38. Ke2 {[%clk
0:00:13.8]} 38... Nxh4 {[%clk 0:00:17.2]} 39. Rc1 {[%clk 0:00:12.4]} 39... Re3+
{[%clk 0:00:17.3]} 40. Kd2 {[%clk 0:00:12.1]} 40... Nf3+ {[%clk 0:00:17.8]} 41.
Kd1 {[%clk 0:00:11.3]} 41... Ne5 {[%clk 0:00:16.5]} 42. Rc8+ {[%clk 0:00:09.5]}
42... Kg7 {[%clk 0:00:16.5]} 43. Rb8 {[%clk 0:00:07.2]} 43... Nxd3 {[%clk
0:00:16.1]} 44. Ng4 {[%clk 0:00:07.5]} 44... Rg3 {[%clk 0:00:15.3]} 45. Nh2
{[%clk 0:00:04]} 45... Rg1+ {[%clk 0:00:15.2]} 46. Kd2 {[%clk 0:00:04.1]} 46...
Rg2+ {[%clk 0:00:14.9]} 47. Kxd3 {[%clk 0:00:03.7]} 47... Rxh2 {[%clk
0:00:15.6]} 48. Rxb6 {[%clk 0:00:03.7]} 48... Rh3+ {[%clk 0:00:15.9]} 49. Kxd4
{[%clk 0:00:03.9]} 49... Rxa3 {[%clk 0:00:16.6]} 50. b5 {[%clk 0:00:03.9]} 50...
axb5 {[%clk 0:00:15.2]} 51. Rxb5 {[%clk 0:00:04.4]} 51... Kg6 {[%clk 0:00:15.6]}
52. Ke4 {[%clk 0:00:04.8]} 52... Ra4+ {[%clk 0:00:15.3]} 53. Kf3 {[%clk
0:00:05]} 53... f5 {[%clk 0:00:15.6]} 54. Rb6+ {[%clk 0:00:05.1]} 54... Kg5
{[%clk 0:00:16]} 55. Rb3 {[%clk 0:00:05.7]} 55... Rh4 {[%clk 0:00:15.7]} 56. Kg2
{[%clk 0:00:05.8]} 56... Rg4+ {[%clk 0:00:15.5]} 57. Kf3 {[%clk 0:00:05.6]}
57... Rc4 {[%clk 0:00:15.6]} 58. Kg3 {[%clk 0:00:05.7]} 58... Rg4+ {[%clk
0:00:14.8]} 59. Kf3 {[%clk 0:00:05.1]} 59... Rf4+ {[%clk 0:00:13.9]} 1/2-1/2

[Event "Early-Titled-Tuesday-Blitz-February-06-2024"]
[Site "Chess.com"]
[Date "2024.02.06"]
[Round "3"]
[White "Bilan_Danila"]
[Black "Licancabur"]
[Result "1/2-1/2"]
[WhiteElo "2609"]
[BlackElo "2428"]
[TimeControl "180+1"]
[EndTime "8:28:47 PST"]
[Termination "Game drawn by repetition"]

1. d4 {[%clk 0:03:00.9]} 1... d5 {[%clk 0:02:57.9]} 2. Nf3 {[%clk 0:02:59.4]}
2... Nf6 {[%clk 0:02:57.5]} 3. c4 {[%clk 0:02:57.1]} 3... dxc4 {[%clk
0:02:57.1]} 4. e3 {[%clk 0:02:57.2]} 4... Bg4 {[%clk 0:02:55.4]} 5. Bxc4 {[%clk
0:02:55.3]} 5... e6 {[%clk 0:02:55.5]} 6. h3 {[%clk 0:02:42.1]} 6... Bh5 {[%clk
0:02:54.9]} 7. Nbd2 {[%clk 0:02:24.5]} 7... a6 {[%clk 0:02:45.5]} 8. Qb3 {[%clk
0:02:09.7]} 8... b5 {[%clk 0:02:35.4]} 9. Bd3 {[%clk 0:02:09.6]} 9... Nbd7
{[%clk 0:02:24.4]} 10. a4 {[%clk 0:01:59.2]} 10... b4 {[%clk 0:02:01.6]} 11. a5
{[%clk 0:01:41.7]} 11... Be7 {[%clk 0:01:57.3]} 12. Nc4 {[%clk 0:01:11.8]} 12...
Bxf3 {[%clk 0:01:50]} 13. gxf3 {[%clk 0:01:12.7]} 13... O-O {[%clk 0:01:47.6]}
14. f4 {[%clk 0:00:58.8]} 14... c5 {[%clk 0:01:44.7]} 15. O-O {[%clk 0:00:39.1]}
15... cxd4 {[%clk 0:01:39.3]} 16. exd4 {[%clk 0:00:40]} 16... Nd5 {[%clk
0:01:39.4]} 17. Ne5 {[%clk 0:00:34.8]} 17... Nxe5 {[%clk 0:01:19.6]} 18. dxe5
{[%clk 0:00:35.7]} 18... Bc5 {[%clk 0:01:12.3]} 19. Qc2 {[%clk 0:00:15.2]} 19...
Rc8 {[%clk 0:01:06.6]} 20. Qe2 {[%clk 0:00:14]} 20... Qh4 {[%clk 0:00:50.5]} 21.
Qg4 {[%clk 0:00:13.8]} 21... Qxg4+ {[%clk 0:00:35.9]} 22. hxg4 {[%clk
0:00:14.7]} 22... f6 {[%clk 0:00:27.5]} 23. Bxa6 {[%clk 0:00:12.8]} 23... Rc7
{[%clk 0:00:21.7]} 24. exf6 {[%clk 0:00:10.6]} 24... Rxf6 {[%clk 0:00:20.1]} 25.
f5 {[%clk 0:00:06.5]} 25... exf5 {[%clk 0:00:17.8]} 26. Bc4 {[%clk 0:00:06.6]}
26... Bxf2+ {[%clk 0:00:11.3]} 27. Rxf2 {[%clk 0:00:07.5]} 27... Rxc4 {[%clk
0:00:11.7]} 28. gxf5 {[%clk 0:00:08.4]} 28... Ra6 {[%clk 0:00:09.5]} 29. Bg5
{[%clk 0:00:07.7]} 29... Nf6 {[%clk 0:00:07.9]} 30. Bxf6 {[%clk 0:00:07.6]}
30... gxf6 {[%clk 0:00:08]} 31. Rd2 {[%clk 0:00:07.4]} 31... Rc5 {[%clk
0:00:08.3]} 32. Rg2+ {[%clk 0:00:06.2]} 32... Kf7 {[%clk 0:00:08.3]} 33. Rh2
{[%clk 0:00:06.7]} 33... Rxf5 {[%clk 0:00:07.2]} 34. Rxh7+ {[%clk 0:00:06.7]}
34... Kg6 {[%clk 0:00:07.8]} 35. Rb7 {[%clk 0:00:07.1]} 35... Rfxa5 {[%clk
0:00:08.1]} 36. Rxa5 {[%clk 0:00:07.1]} 36... Rxa5 {[%clk 0:00:08.3]} 37. Rxb4
{[%clk 0:00:07.8]} 37... Rc5 {[%clk 0:00:08.5]} 38. Kf2 {[%clk 0:00:08]} 38...
Kg5 {[%clk 0:00:08.1]} 39. Kf3 {[%clk 0:00:08.1]} 39... f5 {[%clk 0:00:08.3]}
40. Rb8 {[%clk 0:00:06.8]} 40... Rc2 {[%clk 0:00:07.1]} 41. Rg8+ {[%clk
0:00:07.3]} 41... Kf6 {[%clk 0:00:07.1]} 42. Rb8 {[%clk 0:00:08]} 42... Ke5
{[%clk 0:00:07]} 43. Rb5+ {[%clk 0:00:08.1]} 43... Kf6 {[%clk 0:00:07]} 44. b4
{[%clk 0:00:07.9]} 44... Rc4 {[%clk 0:00:06.4]} 45. Rb8 {[%clk 0:00:07.8]} 45...
Rc3+ {[%clk 0:00:05.7]} 46. Kf4 {[%clk 0:00:07.9]} 46... Rc4+ {[%clk 0:00:06]}
47. Ke3 {[%clk 0:00:08.5]} 47... Ke5 {[%clk 0:00:05.8]} 48. Rb5+ {[%clk
0:00:06.4]} 48... Ke6 {[%clk 0:00:05.3]} 49. Rb6+ {[%clk 0:00:05.5]} 49... Kd5
{[%clk 0:00:05.1]} 50. Rb5+ {[%clk 0:00:05.9]} 50... Ke6 {[%clk 0:00:05.3]} 51.
Rb6+ {[%clk 0:00:06.2]} 51... Kd5 {[%clk 0:00:05.5]} 52. Rb5+ {[%clk 0:00:06.6]}
52... Ke6 {[%clk 0:00:05.8]} 1/2-1/2

[Event "Early-Titled-Tuesday-Blitz-February-06-2024"]
[Site "Chess.com"]
[Date "2024.02.06"]
[Round "3"]
[White "Barath1308"]
[Black "Dinosaurio_1975"]
[Result "0-1"]
[WhiteElo "2403"]
[BlackElo "2592"]
[TimeControl "180+1"]
[EndTime "8:28:47 PST"]
[Termination "Dinosaurio_1975 won by resignation"]

1. Nf3 {[%clk 0:03:00.9]} 1... d5 {[%clk 0:02:52.6]} 2. e3 {[%clk 0:02:59.6]}
2... Nf6 {[%clk 0:02:45.9]} 3. b3 {[%clk 0:02:59.8]} 3... Bf5 {[%clk 0:02:45.3]}
4. Bb2 {[%clk 0:02:59.7]} 4... e6 {[%clk 0:02:45.9]} 5. d3 {[%clk 0:02:57.9]}
5... h6 {[%clk 0:02:46.2]} 6. Nbd2 {[%clk 0:02:58.2]} 6... Be7 {[%clk
0:02:46.6]} 7. Be2 {[%clk 0:02:58.6]} 7... O-O {[%clk 0:02:47.1]} 8. O-O {[%clk
0:02:59.3]} 8... Nbd7 {[%clk 0:02:47.3]} 9. a3 {[%clk 0:02:59.7]} 9... c6 {[%clk
0:02:47.8]} 10. c4 {[%clk 0:02:59.2]} 10... Re8 {[%clk 0:02:45.9]} 11. Ne5
{[%clk 0:02:58.5]} 11... Bd6 {[%clk 0:02:40.1]} 12. Ndf3 {[%clk 0:02:56.9]}
12... Qc7 {[%clk 0:02:39.1]} 13. d4 {[%clk 0:02:55]} 13... Ng4 {[%clk 0:01:55]}
14. Nxg4 {[%clk 0:02:37.2]} 14... Bxg4 {[%clk 0:01:55.9]} 15. h3 {[%clk
0:02:35.6]} 15... Bf5 {[%clk 0:01:54.4]} 16. Bd3 {[%clk 0:02:32.8]} 16... Nf6
{[%clk 0:01:30]} 17. cxd5 {[%clk 0:02:25]} 17... Bxd3 {[%clk 0:01:26.4]} 18.
Qxd3 {[%clk 0:02:24.8]} 18... exd5 {[%clk 0:01:26.9]} 19. Ne5 {[%clk 0:02:24.6]}
19... Ne4 {[%clk 0:01:19.8]} 20. Rac1 {[%clk 0:02:14.3]} 20... Re6 {[%clk
0:01:14.8]} 21. f3 {[%clk 0:02:11.9]} 21... Ng3 {[%clk 0:01:13.5]} 22. Rfe1
{[%clk 0:02:10.9]} 22... Rae8 {[%clk 0:01:08.3]} 23. Ng4 {[%clk 0:01:55.7]}
23... Qe7 {[%clk 0:00:54.8]} 24. b4 {[%clk 0:01:48]} 24... a6 {[%clk 0:00:52.9]}
25. Bc3 {[%clk 0:01:37.6]} 25... Qg5 {[%clk 0:00:50.1]} 26. Bd2 {[%clk
0:01:35.1]} 26... Qf5 {[%clk 0:00:43.5]} 27. Nf2 {[%clk 0:01:23.7]} 27... Qxd3
{[%clk 0:00:36.6]} 28. Nxd3 {[%clk 0:01:24.6]} 28... Nf5 {[%clk 0:00:37.2]} 29.
Ne5 {[%clk 0:01:19.7]} 29... Bxe5 {[%clk 0:00:33.4]} 30. dxe5 {[%clk 0:01:18.4]}
30... Rxe5 {[%clk 0:00:33.4]} 31. Kf2 {[%clk 0:01:16.7]} 31... f6 {[%clk
0:00:31.1]} 32. g4 {[%clk 0:01:15.6]} 32... Nd6 {[%clk 0:00:31.3]} 33. Bc3
{[%clk 0:01:05.5]} 33... R5e6 {[%clk 0:00:31.1]} 34. Bd4 {[%clk 0:01:05.7]}
34... Kf7 {[%clk 0:00:31.1]} 35. a4 {[%clk 0:01:05.4]} 35... f5 {[%clk
0:00:20.6]} 36. Bc5 {[%clk 0:01:02.8]} 36... fxg4 {[%clk 0:00:19.5]} 37. hxg4
{[%clk 0:01:03.1]} 37... Nc4 {[%clk 0:00:16.8]} 38. b5 {[%clk 0:00:57.7]} 38...
axb5 {[%clk 0:00:16.3]} 39. axb5 {[%clk 0:00:57.9]} 39... cxb5 {[%clk
0:00:16.8]} 40. Rb1 {[%clk 0:00:56.9]} 40... b6 {[%clk 0:00:14.3]} 41. Bd4
{[%clk 0:00:56.5]} 41... Ra8 {[%clk 0:00:09.9]} 42. Rxb5 {[%clk 0:00:55]} 42...
Ra2+ {[%clk 0:00:09.8]} 43. Re2 {[%clk 0:00:55.4]} 43... Rxe2+ {[%clk 0:00:10]}
44. Kxe2 {[%clk 0:00:56.3]} 44... Rd6 {[%clk 0:00:10.5]} 45. Kd3 {[%clk
0:00:52.8]} 45... g6 {[%clk 0:00:10.8]} 46. e4 {[%clk 0:00:50.4]} 46... Na3
{[%clk 0:00:08.5]} 47. Rxb6 {[%clk 0:00:49.5]} 47... Rxb6 {[%clk 0:00:07.6]} 48.
Bxb6 {[%clk 0:00:50.4]} 48... dxe4+ {[%clk 0:00:08.2]} 49. Kxe4 {[%clk
0:00:49.9]} 49... Nb5 {[%clk 0:00:08.6]} 50. Be3 {[%clk 0:00:46.8]} 50... Kg7
{[%clk 0:00:05.2]} 51. Kd5 {[%clk 0:00:38.4]} 51... h5 {[%clk 0:00:05.2]} 52.
Ke6 {[%clk 0:00:36.9]} 52... h4 {[%clk 0:00:04.5]} 53. Bf2 {[%clk 0:00:35.5]}
53... h3 {[%clk 0:00:04.2]} 54. Bg3 {[%clk 0:00:34.6]} 54... Nd4+ {[%clk
0:00:03.8]} 55. Ke5 {[%clk 0:00:30.9]} 55... Nxf3+ {[%clk 0:00:04.7]} 56. Kf4
{[%clk 0:00:31.2]} 56... h2 {[%clk 0:00:05.6]} 57. Bxh2 {[%clk 0:00:29.6]} 57...
Nxh2 {[%clk 0:00:06.5]} 58. Kg3 {[%clk 0:00:27.3]} 58... Nf1+ {[%clk 0:00:07.4]}
59. Kf2 {[%clk 0:00:27.2]} 59... Nd2 {[%clk 0:00:08.3]} 60. Ke3 {[%clk
0:00:27.2]} 60... Nc4+ {[%clk 0:00:09.2]} 61. Kd4 {[%clk 0:00:27.5]} 61... Nd6
{[%clk 0:00:10.1]} 62. Ke5 {[%clk 0:00:27.5]} 62... Nf7+ {[%clk 0:00:11]} 63.
Ke6 {[%clk 0:00:26.8]} 63... Ng5+ {[%clk 0:00:11]} 64. Ke5 {[%clk 0:00:26.7]}
64... Kf7 {[%clk 0:00:11.9]} 65. Kf4 {[%clk 0:00:26.8]} 65... Kf6 {[%clk
0:00:12.8]} 0-1